bitfinex/quotes_BTCUSD_20251215
["timestamp","ask_amount","ask_price","bid_price","bid_amount"]
[1765788426383,0.01112112,89919.0,89916.0,0.01112149]
[1765788426596,0.01651099,89920.0,89917.0,0.01212136]
[1765788426790,0.00539,89920.0,89917.0,0.23454867]
[1765788426993,0.00539,89920.0,89917.0,0.23354867]
[1765788427402,0.00539,89920.0,89919.0,0.2224224]
[1765788427961,0.00539,89920.0,89917.0,0.23354867]
[1765788428941,0.01112124,89918.0,89915.0,0.03996258]
[1765788429144,0.01112124,89918.0,89914.0,9.391e-05]
[1765788429145,0.2335462,89918.0,89914.0,0.05117822]
[1765788429365,0.01112124,89918.0,89917.0,0.001]
[1765788429780,0.01112136,89917.0,89914.0,0.05117822]
[1765788429935,0.01112136,89917.0,89915.0,0.009]
[1765788430456,0.23354881,89917.0,89915.0,0.004]
[1765788430667,0.01112136,89917.0,89915.0,0.004]
[1765788431056,0.01078,89916.0,89915.0,0.004]
[1765788431255,0.01078,89916.0,89914.0,0.04005649]
[1765788431256,0.00539,89916.0,89914.0,0.04005649]
[1765788431557,0.01112124,89918.0,89914.0,0.04005649]
[1765788431762,0.01112124,89918.0,89914.0,0.05117822]
[1765788432170,0.01112112,89919.0,89915.0,0.2335539]
[1765788432377,0.01112112,89919.0,89916.0,0.01112149]
[1765788433035,0.23454633,89918.0,89914.0,0.05117822]
[1765788433321,0.01112136,89917.0,89914.0,0.05117822]
[1765788434284,0.01112136,89917.0,89914.0,0.04005649]
[1765788434933,0.22242982,89916.0,89914.0,9.391e-05]
[1765788446639,0.00539,89915.0,89914.0,9.391e-05]
[1765788447702,0.01078,89915.0,89914.0,9.391e-05]
[1765788447905,0.00539,89915.0,89914.0,9.391e-05]
[1765788453289,0.01078,89915.0,89914.0,9.391e-05]
[1765788453519,0.12202003,89915.0,89914.0,9.391e-05]
[1765788453876,0.09580955,89915.0,89914.0,9.391e-05]
[1765788454206,0.09580955,89915.0,89914.0,3.91e-06]
[1765788454207,0.5311613,89915.0,89914.0,3.91e-06]
[1765788454407,0.33369706,89905.0,89904.0,0.1484]
[1765788454663,0.27804192,89899.0,89886.0,0.0111252]
[1765788454828,0.28882192,89899.0,89898.0,0.0003428]
[1765788455476,0.23325188,89899.0,89898.0,0.0003428]
[1765788455676,0.28982192,89899.0,89898.0,0.0003428]
[1765788455871,0.23425188,89899.0,89898.0,0.0003428]
[1765788456474,0.23625188,89899.0,89898.0,0.0003428]
[1765788456877,0.23325188,89899.0,89898.0,0.0003428]
[1765788457392,0.29482192,89899.0,89898.0,0.0003428]
[1765788457608,2.04499488,89899.0,89898.0,0.0003428]
[1765788457810,2.15623491,89899.0,89898.0,0.0003428]
[1765788458011,2.11286337,89899.0,89898.0,0.0003428]
[1765788458216,2.1198134,89899.0,89898.0,2.8e-06]
[1765788458470,2.05194491,89899.0,89898.0,2.8e-06]
[1765788460270,1.99188491,89899.0,89898.0,2.8e-06]
[1765788460796,1.75543891,89899.0,89898.0,2.8e-06]
[1765788460975,1.53930891,89899.0,89898.0,2.8e-06]
[1765788461156,0.84445891,89899.0,89898.0,2.8e-06]
[1765788465245,0.8555851,89899.0,89898.0,2.8e-06]
[1765788479698,0.74434507,89899.0,89898.0,2.8e-06]
[1765788479905,0.8555851,89899.0,89898.0,2.8e-06]
[1765788483364,0.86600606,89899.0,89898.0,2.8e-06]
[1765788485288,0.75476603,89899.0,89898.0,2.8e-06]
[1765788485493,0.86600606,89899.0,89898.0,2.8e-06]
[1765788485693,0.75476603,89899.0,89898.0,2.8e-06]
[1765788485978,0.86600606,89899.0,89898.0,2.8e-06]
[1765788487779,0.65533403,89899.0,89898.0,2.8e-06]
[1765788487990,0.55149903,89899.0,89898.0,2.8e-06]
[1765788488188,0.55150962,89899.0,89898.0,2.8e-06]
[1765788488961,0.56906962,89899.0,89898.0,2.8e-06]
[1765788490651,0.55863807,89899.0,89898.0,2.8e-06]
[1765788490860,0.54107807,89899.0,89898.0,2.8e-06]
[1765788491647,0.53807807,89899.0,89898.0,2.8e-06]
[1765788491894,0.53707807,89899.0,89898.0,2.8e-06]
[1765788492066,0.6463181,89899.0,89898.0,2.8e-06]
[1765788492478,0.6483181,89899.0,89898.0,2.8e-06]
[1765788492676,0.6513181,89899.0,89898.0,2.8e-06]
[1765788493089,0.6483181,89899.0,89898.0,2.8e-06]
[1765788493465,0.6503181,89899.0,89898.0,2.8e-06]
[1765788498344,0.53368807,89899.0,89898.0,2.8e-06]
[1765788498746,0.53907807,89899.0,89898.0,2.8e-06]
[1765788505110,0.6503181,89899.0,89898.0,2.8e-06]
[1765788514409,0.64958569,89899.0,89898.0,2.8e-06]
[1765788514635,0.53907807,89899.0,89898.0,2.8e-06]
[1765788515637,0.59464811,89899.0,89898.0,2.8e-06]
[1765788516211,0.6503181,89899.0,89898.0,2.8e-06]
[1765788517187,0.6607495,89899.0,89898.0,2.8e-06]
[1765788518668,0.6503181,89899.0,89898.0,2.8e-06]
[1765788528168,0.53907807,89899.0,89898.0,2.8e-06]
[1765788528623,0.6503181,89899.0,89898.0,2.8e-06]
[1765788528790,0.6607497,89899.0,89898.0,2.8e-06]
[1765788529765,0.6503181,89899.0,89898.0,2.8e-06]
[1765788531672,0.53907807,89899.0,89898.0,2.8e-06]
[1765788532094,0.59464811,89899.0,89898.0,2.8e-06]
[1765788532509,0.6503181,89899.0,89898.0,2.8e-06]
[1765788532719,0.59464811,89899.0,89898.0,2.8e-06]
[1765788533136,0.53907807,89899.0,89898.0,2.8e-06]
[1765788533559,0.59464811,89899.0,89898.0,2.8e-06]
[1765788533766,0.53907807,89899.0,89898.0,2.8e-06]
[1765788536969,0.6503181,89899.0,89898.0,2.8e-06]
[1765788538240,0.66075117,89899.0,89898.0,2.8e-06]
[1765788541951,0.6503181,89899.0,89898.0,2.8e-06]
[1765788542279,0.59464811,89899.0,89898.0,2.8e-06]
[1765788542706,0.61220811,89899.0,89898.0,2.8e-06]
[1765788543878,0.53907807,89899.0,89898.0,2.8e-06]
[1765788544098,0.54585807,89899.0,89898.0,2.8e-06]
[1765788544442,0.55663807,89899.0,89898.0,2.8e-06]
[1765788548854,0.55124807,89899.0,89898.0,2.8e-06]
[1765788550060,0.55663807,89899.0,89898.0,2.8e-06]
[1765788550884,0.55124807,89899.0,89898.0,2.8e-06]
[1765788552619,0.55663807,89899.0,89898.0,2.8e-06]
[1765788554986,0.53907807,89899.0,89898.0,2.8e-06]
[1765788557231,0.6503181,89899.0,89898.0,2.8e-06]
[1765788557442,0.53907807,89899.0,89898.0,2.8e-06]
[1765788557902,0.53368807,89899.0,89898.0,2.8e-06]
[1765788558400,0.53907807,89899.0,89898.0,2.8e-06]
[1765788569373,0.6503181,89899.0,89898.0,2.8e-06]
[1765788570101,0.53907807,89899.0,89898.0,2.8e-06]
[1765788585424,0.6503181,89899.0,89898.0,2.8e-06]
[1765788586820,0.53907807,89899.0,89898.0,2.8e-06]
[1765788587097,0.6503181,89899.0,89898.0,2.8e-06]
[1765788590689,0.53907807,89899.0,89898.0,2.8e-06]
[1765788598261,0.59464811,89899.0,89898.0,2.8e-06]
[1765788599790,0.53907807,89899.0,89898.0,2.8e-06]
[1765788600133,0.59464811,89899.0,89898.0,2.8e-06]
[1765788601737,0.53907807,89899.0,89898.0,2.8e-06]
[1765788602315,0.65002333,89899.0,89898.0,2.8e-06]
[1765788607202,0.5387833,89899.0,89898.0,2.8e-06]
[1765788607406,0.65002333,89899.0,89898.0,2.8e-06]
[1765788609099,0.5387833,89899.0,89898.0,2.8e-06]
[1765788609445,0.65002333,89899.0,89898.0,2.8e-06]
[1765788611932,0.42784622,89899.0,89898.0,2.8e-06]
[1765788612146,0.42784622,89899.0,89898.0,0.0387928]
[1765788612147,0.01512619,89899.0,89898.0,0.0387928]
[1765788612310,0.004,89899.0,89898.0,0.04040567]
[1765788613142,0.01112297,89904.0,89900.0,0.01112347]
[1765788613343,0.01112297,89904.0,89901.0,0.01112334]
[1765788613547,0.01112285,89905.0,89902.0,0.01112322]
[1765788614274,0.002,89904.0,89902.0,0.01112322]
[1765788614658,0.01112285,89905.0,89902.0,0.01112322]
[1765788615193,0.01112272,89906.0,89902.0,0.01112322]
[1765788615504,0.001,89904.0,89903.0,0.23358507]
[1765788615711,0.02224545,89907.0,89903.0,0.23358507]
[1765788615914,0.001,89905.0,89903.0,0.23358507]
[1765788616161,0.003,89905.0,89903.0,0.23358507]
[1765788616331,0.002,89905.0,89903.0,0.23358507]
[1765788616557,0.01112272,89906.0,89903.0,0.01112309]
[1765788617674,0.01412272,89906.0,89903.0,0.01112309]
[1765788617851,0.002,89906.0,89903.0,0.01112309]
[1765788618211,0.003,89906.0,89903.0,0.01112309]
[1765788618420,0.003,89906.0,89903.0,0.23358486]
[1765788620595,0.003,89906.0,89905.0,0.25031703]
[1765788620807,0.003,89906.0,89905.0,0.27338703]
[1765788621488,0.002,89906.0,89905.0,0.27338703]
[1765788621871,0.003,89906.0,89905.0,0.27338703]
[1765788622032,0.001,89906.0,89905.0,0.27338703]
[1765788622237,0.003,89906.0,89905.0,0.27338703]
[1765788622557,0.003,89906.0,89905.0,0.25031703]
[1765788622767,0.003,89906.0,89905.0,0.27338703]
[1765788622981,0.003,89906.0,89905.0,0.25031703]
[1765788623538,0.003,89906.0,89905.0,0.01214]
[1765788626180,0.003,89906.0,89905.0,0.23459703]
[1765788629131,0.003,89906.0,89905.0,0.01214]
[1765788631142,0.003,89906.0,89905.0,0.2765799]
[1765788631555,0.003,89906.0,89905.0,0.36000214]
[1765788631708,0.003,89906.0,89905.0,0.30998375]
[1765788631900,0.003,89906.0,89905.0,0.42120604]
[1765788632101,0.01112161,89915.0,89911.0,0.0111221]
[1765788632319,0.01112198,89912.0,89907.0,0.01756]
[1765788632734,0.01651198,89912.0,89907.0,0.01756]
[1765788633627,0.01112223,89910.0,89907.0,0.01756]
[1765788634438,0.01112223,89910.0,89905.0,0.01273572]
[1765788634439,0.01112235,89909.0,89905.0,0.01273572]
[1765788635016,0.001,89910.0,89907.0,0.0111226]
[1765788635253,0.001,89910.0,89908.0,0.22244961]
[1765788635453,0.01112198,89912.0,89909.0,0.01112235]
[1765788635659,0.001,89909.0,89908.0,0.01112248]
[1765788636973,0.0111221,89911.0,89908.0,0.01112248]
[1765788637515,0.001,89910.0,89908.0,0.01112248]
[1765788637915,0.0111221,89911.0,89908.0,0.01112248]
[1765788638059,0.0121221,89911.0,89908.0,0.01112248]
[1765788638713,0.0111221,89911.0,89908.0,0.01112248]
[1765788639060,0.001,89910.0,89908.0,0.01112248]
[1765788639461,0.001,89910.0,89909.0,0.22244714]
[1765788639660,0.001,89910.0,89908.0,0.01112248]
[1765788640143,0.01112186,89913.0,89910.0,0.01112223]
[1765788640373,0.02763285,89914.0,89910.0,0.01112223]
[1765788640490,0.001,89911.0,89910.0,0.01112223]
[1765788640914,0.01651112,89914.0,89911.0,0.0111221]
[1765788641118,0.01651112,89914.0,89911.0,0.23356191]
[1765788641438,0.003,89913.0,89911.0,0.25791191]
[1765788641727,0.01651112,89914.0,89911.0,0.25791191]
[1765788642089,0.01851112,89914.0,89911.0,0.23356191]
[1765788642695,0.01851112,89914.0,89912.0,0.02435]
[1765788643516,0.01651112,89914.0,89912.0,0.02435]
[1765788644015,0.01751112,89914.0,89912.0,0.02435]
[1765788644221,0.01951112,89914.0,89912.0,0.02435]
[1765788644646,0.01951112,89914.0,89913.0,0.01568]
[1765788645766,0.01951112,89914.0,89911.0,0.23356191]
[1765788646269,0.01751112,89914.0,89911.0,0.25791191]
[1765788646485,0.01951112,89914.0,89913.0,0.22243724]
[1765788646986,0.01651112,89914.0,89913.0,0.22243724]
[1765788647267,0.01851112,89914.0,89913.0,0.22243724]
[1765788647477,0.01951112,89914.0,89913.0,0.22243724]
[1765788647942,0.01751112,89914.0,89913.0,0.22243724]
[1765788648089,0.01951112,89914.0,89913.0,0.22243724]
[1765788652544,0.003,89914.0,89913.0,0.22243724]
[1765788653558,0.003,89914.0,89911.0,0.23356191]
[1765788653937,0.003,89914.0,89913.0,0.22243724]
[1765788654353,0.003,89914.0,89911.0,0.23356191]
[1765788654591,0.002,89914.0,89911.0,0.23356191]
[1765788654788,0.002,89914.0,89913.0,0.22243724]
[1765788655106,0.003,89914.0,89913.0,0.22243724]
[1765788655455,0.001,89914.0,89913.0,0.22243724]
[1765788655785,0.003,89914.0,89913.0,0.22243724]
[1765788655989,0.003,89914.0,89912.0,0.22243732]
[1765788656186,0.01112136,89917.0,89914.0,0.23355633]
[1765788656392,0.01112136,89917.0,89914.0,0.01112173]
[1765788657362,0.01312136,89917.0,89914.0,0.01112173]
[1765788657564,0.01412136,89917.0,89912.0,0.2335593]
[1765788658668,0.01212136,89917.0,89914.0,0.01112173]
[1765788658844,0.01412136,89917.0,89914.0,0.01112173]
[1765788659082,0.23654886,89917.0,89912.0,0.2335593]
[1765788659459,0.23354886,89917.0,89913.0,0.01112186]
[1765788659665,0.01112136,89917.0,89913.0,0.01112186]
[1765788659866,0.01412136,89917.0,89913.0,0.01112186]
[1765788660270,0.01212136,89917.0,89913.0,0.01112186]
[1765788660674,0.01112136,89917.0,89914.0,0.01112173]
[1765788660874,0.01212136,89917.0,89914.0,0.01112173]
[1765788661607,0.01112149,89916.0,89913.0,0.01112186]
[1765788662460,0.01312136,89917.0,89914.0,0.2335565]
[1765788662826,0.01212136,89917.0,89914.0,0.01112173]
[1765788663041,0.01112136,89917.0,89914.0,0.01112173]
[1765788663236,0.002,89916.0,89914.0,0.01112173]
[1765788663438,0.003,89916.0,89914.0,0.01112173]
[1765788663618,0.002,89916.0,89914.0,0.01112173]
[1765788664195,0.002,89916.0,89914.0,0.23355589]
[1765788664528,0.01112124,89918.0,89914.0,0.23355589]
[1765788664930,0.002,89917.0,89914.0,0.01112173]
[1765788665313,0.01112124,89918.0,89914.0,0.01112173]
[1765788665524,0.001,89916.0,89914.0,0.01112173]
[1765788665754,0.01312124,89918.0,89914.0,0.01112173]
[1765788666157,0.001,89917.0,89914.0,0.01112173]
[1765788666449,0.01112124,89918.0,89914.0,0.01112173]
[1765788666656,0.001,89916.0,89914.0,0.01112173]
[1765788667090,0.01112124,89918.0,89914.0,0.01112173]
[1765788667298,0.01112136,89917.0,89913.0,0.01112186]
[1765788667499,0.01212136,89917.0,89914.0,0.01112173]
[1765788667702,0.002,89916.0,89914.0,0.01112173]
[1765788668113,0.01212136,89917.0,89914.0,0.01112173]
[1765788668523,0.01112149,89916.0,89913.0,0.01112186]
[1765788668730,0.01112161,89915.0,89912.0,0.01112198]
[1765788669041,0.01212149,89916.0,89913.0,0.01112186]
[1765788669355,0.01312136,89917.0,89914.0,0.01112173]
[1765788669536,0.23355257,89916.0,89912.0,0.01112198]
[1765788669737,0.01212149,89916.0,89912.0,0.01112198]
[1765788669972,0.23455186,89916.0,89912.0,0.01112198]
[1765788670337,0.01112149,89916.0,89912.0,0.01112198]
[1765788670760,0.01212149,89916.0,89912.0,0.01112198]
[1765788670967,0.01412149,89916.0,89912.0,0.01112198]
[1765788671372,0.01212149,89916.0,89912.0,0.01112198]
[1765788671823,0.01412149,89916.0,89912.0,0.01112198]
[1765788675426,0.01412149,89916.0,89912.0,0.23355926]
[1765788676405,0.01412149,89916.0,89912.0,0.01112198]
[1765788677350,0.01412149,89916.0,89913.0,0.01112186]
[1765788678165,0.01212149,89916.0,89913.0,0.01112186]
[1765788678588,0.01312149,89916.0,89913.0,0.01112186]
[1765788678751,0.002,89916.0,89913.0,0.01112186]
[1765788678959,0.003,89916.0,89913.0,0.01112186]
[1765788682095,0.01412149,89916.0,89912.0,0.01112198]
[1765788682273,0.01951149,89916.0,89912.0,0.01112198]
[1765788682443,0.01412149,89916.0,89912.0,0.01112198]
[1765788683004,0.01112161,89915.0,89911.0,0.0111221]
[1765788683467,0.01112161,89915.0,89912.0,0.01112198]
[1765788683675,0.01412149,89916.0,89913.0,0.01112186]
[1765788683869,0.01212149,89916.0,89913.0,0.01112186]
[1765788683993,0.002,89915.0,89913.0,0.01112186]
[1765788684529,0.01212149,89916.0,89913.0,0.01112186]
[1765788684851,0.01112136,89917.0,89914.0,0.01112173]
[1765788685282,0.01112136,89917.0,89913.0,0.01112186]
[1765788685283,0.001,89915.0,89913.0,0.01112186]
[1765788685508,0.01112136,89917.0,89913.0,0.01112186]
[1765788685710,0.001,89916.0,89913.0,0.01112186]
[1765788685947,0.01312149,89916.0,89911.0,0.0111221]
[1765788686167,0.01312149,89916.0,89909.0,0.03996258]
[1765788686168,0.01651198,89912.0,89909.0,0.03996258]
[1765788686372,0.01651161,89915.0,89902.0,0.03996258]
[1765788686373,0.01078,89905.0,89902.0,0.03996258]
[1765788686578,0.02190285,89905.0,89903.0,0.03996258]
[1765788686925,0.22245951,89904.0,89903.0,0.03996258]
[1765788687107,0.01112297,89904.0,89901.0,0.03996258]
[1765788687310,0.01651285,89905.0,89902.0,0.01112322]
[1765788687631,0.01651285,89905.0,89902.0,0.0510858]
[1765788687949,0.01651285,89905.0,89903.0,0.001]
[1765788688276,0.00539,89905.0,89902.0,0.23358539]
[1765788688467,0.00539,89905.0,89902.0,0.27454797]
[1765788689220,0.00539,89905.0,89902.0,0.23458539]
[1765788690101,0.00539,89905.0,89904.0,0.22245951]
[1765788690546,0.00539,89905.0,89902.0,0.23458539]
[1765788691024,0.01112235,89909.0,89905.0,0.01112285]
[1765788691225,0.00539,89911.0,89907.0,0.0111226]
[1765788692745,0.0165121,89911.0,89908.0,0.01112248]
[1765788692949,0.01112235,89909.0,89906.0,0.01112272]
[1765788694238,0.01112248,89908.0,89905.0,0.01112285]
[1765788694436,0.01112235,89909.0,89904.0,0.23358248]
[1765788694638,0.01112235,89909.0,89902.0,0.01112322]
[1765788694840,0.01112235,89909.0,89906.0,0.01112272]
[1765788695164,0.01112223,89910.0,89907.0,0.0111226]
[1765788695541,0.00639,89911.0,89907.0,0.0111226]
[1765788695877,0.23356692,89910.0,89906.0,0.01112272]
[1765788696105,0.001,89909.0,89906.0,0.01112272]
[1765788696391,0.001,89909.0,89906.0,0.23357617]
[1765788696580,0.00539,89911.0,89908.0,0.01112248]
[1765788696887,0.00639,89911.0,89908.0,0.01112248]
[1765788697042,0.0175121,89911.0,89908.0,0.01112248]
[1765788698265,0.0165121,89911.0,89908.0,0.01112248]
[1765788698500,0.00539,89911.0,89909.0,0.24469185]
[1765788698760,0.00539,89911.0,89906.0,0.01112272]
[1765788698761,0.01112223,89910.0,89906.0,0.01112272]
[1765788698957,0.0175121,89911.0,89907.0,0.23357468]
[1765788699160,0.0175121,89911.0,89908.0,0.01112248]
[1765788699362,0.0165121,89911.0,89908.0,0.01112248]
[1765788699687,0.0175121,89911.0,89908.0,0.01112248]
[1765788699894,0.01112223,89910.0,89907.0,0.0111226]
[1765788700198,0.00539,89911.0,89908.0,0.01112248]
[1765788700643,0.00539,89911.0,89908.0,0.2335717]
[1765788701546,0.00639,89911.0,89908.0,0.2335717]
[1765788702509,0.00639,89911.0,89908.0,0.01112248]
[1765788702706,0.00639,89911.0,89908.0,0.23356971]
[1765788703378,0.00639,89911.0,89910.0,0.22244466]
[1765788704073,0.00639,89911.0,89908.0,0.23356971]
[1765788704521,0.00539,89911.0,89908.0,0.23356971]
[1765788704938,0.00639,89911.0,89908.0,0.23356971]
[1765788705618,0.00539,89911.0,89908.0,0.23356971]
[1765788705823,0.00639,89911.0,89908.0,0.23356971]
[1765788706642,0.0175121,89911.0,89908.0,0.01112248]
[1765788707387,0.00639,89911.0,89909.0,0.22244714]
[1765788708134,0.00539,89911.0,89909.0,0.22244714]
[1765788708570,0.00639,89911.0,89909.0,0.22244714]
[1765788714090,0.03979759,89911.0,89908.0,0.23356991]
[1765788714645,0.00539,89909.0,89908.0,0.23356991]
[1765788714868,0.03979759,89911.0,89908.0,0.01112248]
[1765788715068,0.03879759,89911.0,89908.0,0.01112248]
[1765788715485,0.03979759,89911.0,89908.0,0.01112248]
[1765788716085,0.03979759,89911.0,89909.0,0.22244714]
[1765788716901,0.03879759,89911.0,89909.0,0.22244714]
[1765788717052,0.03979759,89911.0,89909.0,0.22244714]
[1765788717250,0.04179759,89911.0,89909.0,0.22244714]
[1765788717475,0.04079759,89911.0,89909.0,0.22244714]
[1765788717692,0.03979759,89911.0,89909.0,0.22244714]
[1765788718053,0.04179759,89911.0,89909.0,0.22244714]
[1765788719233,0.04179759,89911.0,89908.0,0.01112248]
[1765788719389,0.05291969,89911.0,89908.0,0.01112248]
[1765788719602,0.04179759,89911.0,89908.0,0.01112248]
[1765788719847,0.04179759,89911.0,89909.0,0.22244714]
[1765788720023,0.04079759,89911.0,89909.0,0.22244714]
[1765788720429,0.03979759,89911.0,89909.0,0.22244714]
[1765788720599,0.03879759,89911.0,89909.0,0.22244714]
[1765788720799,0.04079759,89911.0,89909.0,0.22244714]
[1765788721111,0.04179759,89911.0,89909.0,0.22244714]
[1765788721311,0.03979759,89911.0,89909.0,0.22244714]
[1765788721529,0.03979759,89911.0,89908.0,0.01112248]
[1765788721530,0.04179759,89911.0,89908.0,0.23356981]
[1765788721791,0.04179759,89911.0,89906.0,0.05111659]
[1765788721792,0.01112235,89909.0,89906.0,0.03999387]
[1765788721969,0.01112235,89909.0,89905.0,0.01112285]
[1765788722171,0.01112235,89909.0,89904.0,0.05111684]
[1765788722172,0.0111226,89907.0,89904.0,0.03999387]
[1765788722396,0.23357988,89905.0,89902.0,0.03999387]
[1765788723078,0.22246198,89903.0,89902.0,0.03999387]
[1765788723404,0.23357988,89905.0,89902.0,0.03999387]
[1765788723985,0.23358015,89905.0,89902.0,0.03999387]
[1765788724493,0.23458015,89905.0,89902.0,0.03999387]
[1765788724698,0.23458015,89905.0,89902.0,0.04099387]
[1765788724902,0.01212285,89905.0,89902.0,0.04099387]
[1765788725058,0.01112285,89905.0,89902.0,0.04099387]
[1765788725268,0.01312285,89905.0,89902.0,0.05211709]
[1765788725699,0.01312285,89905.0,89902.0,0.04099387]
[1765788725941,0.01312285,89905.0,89902.0,0.03999387]
[1765788726279,0.23658227,89905.0,89902.0,0.03999387]
[1765788726479,0.01412285,89905.0,89902.0,0.03999387]
[1765788728244,0.01412285,89905.0,89901.0,0.03999387]
[1765788728443,0.003,89905.0,89901.0,0.27358406]
[1765788728656,0.003,89905.0,89903.0,0.03999387]
[1765788729065,0.002,89905.0,89903.0,0.26245545]
[1765788729471,0.001,89905.0,89903.0,0.26245545]
[1765788729896,0.003,89905.0,89903.0,0.26245545]
[1765788730104,0.002,89905.0,89903.0,0.26245545]
[1765788730283,0.002,89905.0,89904.0,0.03999387]
[1765788730645,0.001,89905.0,89904.0,0.03999387]
[1765788731070,0.003,89905.0,89904.0,0.03999387]
[1765788731458,0.001,89905.0,89904.0,0.03999387]
[1765788732042,0.03340963,89908.0,89905.0,0.23357988]
[1765788733545,0.03540963,89908.0,89905.0,0.23357988]
[1765788733944,0.03640963,89908.0,89905.0,0.23357988]
[1765788737543,0.03640963,89908.0,89905.0,0.01112285]
[1765788738291,0.04753211,89908.0,89905.0,0.01112285]
[1765788738496,0.26998173,89908.0,89904.0,0.26245092]
[1765788738712,0.04753211,89908.0,89905.0,0.01112285]
[1765788738937,0.03640963,89908.0,89905.0,0.01112285]
[1765788739333,0.03440963,89908.0,89905.0,0.01112285]
[1765788739651,0.04753211,89908.0,89905.0,0.01112285]
[1765788740046,0.04553211,89908.0,89905.0,0.01112285]
[1765788740457,0.04753211,89908.0,89905.0,0.01112285]
[1765788740653,0.03640963,89908.0,89906.0,0.22245456]
[1765788740848,0.03640963,89908.0,89905.0,0.23357977]
[1765788741656,0.03440963,89908.0,89905.0,0.23357977]
[1765788742158,0.03640963,89908.0,89905.0,0.01112285]
[1765788742631,0.03440963,89908.0,89905.0,0.01112285]
[1765788742835,0.03640963,89908.0,89906.0,0.22245456]
[1765788743182,0.03640963,89908.0,89905.0,0.01112285]
[1765788743675,0.03440963,89908.0,89905.0,0.01112285]
[1765788744255,0.03340963,89908.0,89905.0,0.23357856]
[1765788744630,0.04553211,89908.0,89905.0,0.01112285]
[1765788744808,0.03540963,89908.0,89905.0,0.01112285]
[1765788745114,0.03640963,89908.0,89905.0,0.01112285]
[1765788745314,0.03440963,89908.0,89905.0,0.01112285]
[1765788745732,0.03640963,89908.0,89905.0,0.01112285]
[1765788746343,0.04753211,89908.0,89905.0,0.01112285]
[1765788746545,0.04753211,89908.0,89904.0,0.01112297]
[1765788746920,0.15877214,89908.0,89905.0,0.01112285]
[1765788747240,0.26998257,89908.0,89904.0,0.01112297]
[1765788747439,0.26998257,89908.0,89903.0,0.05111696]
[1765788747440,0.26898257,89908.0,89903.0,0.05111696]
[1765788747655,0.26998257,89908.0,89903.0,0.05111696]
[1765788747853,0.04553211,89908.0,89903.0,0.05111696]
[1765788748148,0.0111226,89907.0,89903.0,0.05111696]
[1765788748361,0.04753211,89908.0,89905.0,0.01112285]
[1765788748518,0.04453211,89908.0,89905.0,0.01112285]
[1765788748952,0.04753211,89908.0,89905.0,0.01112285]
[1765788749153,0.04653211,89908.0,89905.0,0.01112285]
[1765788749359,0.0111226,89907.0,89904.0,0.05111684]
[1765788750199,0.0111226,89907.0,89904.0,0.03999387]
[1765788751222,0.0141226,89907.0,89904.0,0.03999387]
[1765788751366,0.003,89907.0,89904.0,0.01112297]
[1765788751567,0.003,89907.0,89904.0,0.23358238]
[1765788752373,0.003,89907.0,89906.0,0.22245456]
[1765788753611,0.002,89907.0,89906.0,0.22245456]
[1765788753835,0.003,89907.0,89906.0,0.22245456]
[1765788754262,0.001,89907.0,89906.0,0.22245456]
[1765788754461,0.003,89907.0,89906.0,0.22245456]
[1765788756191,0.003,89907.0,89904.0,0.27357625]
[1765788756511,0.003,89907.0,89905.0,0.22245459]
[1765788757048,0.002,89907.0,89905.0,0.22245459]
[1765788757250,0.03340963,89908.0,89906.0,0.22245227]
[1765788757522,0.003,89907.0,89906.0,0.22245227]
[1765788757693,0.002,89907.0,89906.0,0.22245227]
[1765788758132,0.001,89907.0,89906.0,0.22245227]
[1765788758333,0.002,89907.0,89905.0,0.27357131]
[1765788758678,0.001,89907.0,89905.0,0.27357131]
[1765788759123,0.003,89907.0,89905.0,0.27357131]
[1765788759733,0.002,89907.0,89905.0,0.27357131]
[1765788760199,0.001,89907.0,89905.0,0.27357131]
[1765788760600,0.003,89907.0,89905.0,0.27357131]
[1765788768159,0.003,89907.0,89905.0,0.03999387]
[1765788768395,0.01112272,89906.0,89903.0,0.03999387]
[1765788769525,0.01312272,89906.0,89903.0,0.03999387]
[1765788769712,0.01412272,89906.0,89903.0,0.03999387]
[1765788770312,0.23657893,89906.0,89903.0,0.03999387]
[1765788770673,0.01412272,89906.0,89903.0,0.03999387]
[1765788771095,0.23657951,89906.0,89903.0,0.03999387]
[1765788771296,0.23657886,89906.0,89903.0,0.03999387]
[1765788771515,0.01412272,89906.0,89903.0,0.03999387]
[1765788771678,0.23657882,89906.0,89903.0,0.03999387]
[1765788772145,0.01412272,89906.0,89903.0,0.03999387]
[1765788773055,0.22545574,89906.0,89903.0,0.03999387]
[1765788774022,0.03340963,89905.0,89903.0,0.03999387]
[1765788774888,0.25586911,89905.0,89903.0,0.03999387]
[1765788775093,0.25586836,89905.0,89903.0,0.03999387]
[1765788775298,0.22245873,89905.0,89903.0,0.03999387]
[1765788775494,0.03340963,89904.0,89903.0,0.03999387]
[1765788775851,0.03340963,89904.0,89898.0,0.03395651]
[1765788775852,0.22246198,89903.0,89901.0,0.03999387]
[1765788776058,0.22246198,89903.0,89898.0,2.8e-06]
[1765788776059,0.22247188,89899.0,89898.0,2.8e-06]
[1765788776324,0.28343192,89899.0,89898.0,2.8e-06]
[1765788776528,0.32223319,89899.0,89898.0,2.8e-06]
[1765788776724,0.26666315,89899.0,89898.0,2.8e-06]
[1765788778289,0.37790318,89899.0,89898.0,2.8e-06]
[1765788778488,0.37890318,89899.0,89898.0,2.8e-06]
[1765788778693,0.37990318,89899.0,89898.0,2.8e-06]
[1765788778929,0.37890318,89899.0,89898.0,2.8e-06]
[1765788779179,0.37790318,89899.0,89898.0,2.8e-06]
[1765788779349,0.38190318,89899.0,89898.0,2.8e-06]
[1765788779934,0.37990318,89899.0,89898.0,2.8e-06]
[1765788780134,0.37790318,89899.0,89898.0,2.8e-06]
[1765788780576,0.37990318,89899.0,89898.0,2.8e-06]
[1765788781257,0.38290318,89899.0,89898.0,2.8e-06]
[1765788787257,0.27166315,89899.0,89898.0,2.8e-06]
[1765788787457,0.32723319,89899.0,89898.0,2.8e-06]
[1765788787613,0.27166315,89899.0,89898.0,2.8e-06]
[1765788788609,0.32723319,89899.0,89898.0,2.8e-06]
[1765788794443,0.38290318,89899.0,89898.0,2.8e-06]
[1765788795242,0.37751318,89899.0,89898.0,2.8e-06]
[1765788795437,0.26088315,89899.0,89898.0,2.8e-06]
[1765788795644,0.37212318,89899.0,89898.0,2.8e-06]
[1765788795826,0.37751318,89899.0,89898.0,2.8e-06]
[1765788796450,0.37990318,89899.0,89898.0,2.8e-06]
[1765788796856,0.38290318,89899.0,89898.0,2.8e-06]
[1765788797233,0.37990318,89899.0,89898.0,2.8e-06]
[1765788797414,0.38190318,89899.0,89898.0,2.8e-06]
[1765788797617,0.38090318,89899.0,89898.0,2.8e-06]
[1765788798067,0.38290318,89899.0,89898.0,2.8e-06]
[1765788798902,0.27166315,89899.0,89898.0,2.8e-06]
[1765788799134,0.38290318,89899.0,89898.0,2.8e-06]
[1765788804425,0.32723319,89899.0,89898.0,2.8e-06]
[1765788819494,0.27166315,89899.0,89898.0,2.8e-06]